fUSD/lending_fUSD_20250108
["ID","MTS","AMOUNT","RATE_DAILY","PERIOD"]
[348085174,1736298653451,-500.0,0.0001119,2]
[348085175,1736298653461,-500.0,0.0001119,2]
[348085176,1736298653470,-500.0,0.0001119,2]
[348085177,1736298653479,-500.0,0.0001119,2]
[348085178,1736298653489,-500.0,0.0001119,2]
[348085179,1736298653498,-500.0,0.0001119,2]
[348085180,1736298653508,-500.0,0.0001119,2]
[348085181,1736298653517,-568.11,0.0001119,2]
[348085182,1736298653527,-500.86,0.0001119,2]
[348085183,1736298653536,-500.0,0.0001119,2]
[348085184,1736298653545,-500.0,0.0001119,2]
[348085185,1736298653555,-500.0,0.0001119,2]
[348085186,1736298653565,-500.0,0.0001119,2]
[348085187,1736298653574,-1578.54891696,0.0001119,2]
[348085188,1736298653583,-9326.42530823,0.0001119,2]
[348085189,1736298653593,-1115.01572003,0.0001119,2]
[348085190,1736298653602,-200.0,0.0001119,2]
[348085191,1736298653611,-1578.54891696,0.00011191,2]
[348085192,1736298653621,-494.23,0.00011191,2]
[348085193,1736298653631,-150.77,0.00011191,2]
[348085194,1736298653639,-500.0,0.00011191,2]
[348085195,1736298653649,-500.0,0.00011191,2]
[348085196,1736298653658,-500.0,0.00011191,2]
[348085197,1736298653667,-500.0,0.00011191,2]
[348085198,1736298653676,-500.0,0.00011191,2]
[348085199,1736298653686,-319.53434023,0.00011191,2]
[348085200,1736298653695,-500.0,0.00011191,2]
[348085201,1736298653705,-500.0,0.00011191,2]
[348085202,1736298653715,-500.0,0.00011191,2]
[348085203,1736298653725,-594.09,0.00011191,2]
[348085204,1736298653735,-588.03,0.00011191,2]
[348085205,1736298653745,-1029.47,0.00011191,2]
[348085206,1736298653754,-2479.86,0.00011191,2]
[348085207,1736298653764,-200.0,0.00011191,2]
[348085208,1736298653774,-9888.66384724,0.00011191,2]
[348085209,1736298653784,-770.18891789,0.00011191,2]
[348085210,1736298653793,-1115.01572003,0.00011191,2]
[348085211,1736298653803,-200.0,0.00011192,2]
[348085212,1736298653813,-5391.81195407,0.00011192,2]
[348085213,1736298653822,-500.0,0.00011192,2]
[348085214,1736298653831,-611.36,0.00011192,2]
[348085215,1736298653841,-500.0,0.00011192,2]
[348085216,1736298653850,-509.33,0.00011192,2]
[348085217,1736298653859,-500.0,0.00011192,2]
[348085218,1736298653869,-1249.96,0.00011192,2]
[348085219,1736298653879,-1002.02,0.00011192,2]
[348085220,1736298653888,-16846.42667789,0.00011192,2]
[348085221,1736298653898,-3208.38748302,0.00011192,2]
[348085222,1736298653907,-770.18891789,0.00011192,2]
[348085223,1736298653917,-1115.01572003,0.00011192,2]
[348085224,1736298653926,-1115.01572003,0.00011192,2]
[348085225,1736298653936,-770.18891789,0.00011193,2]
[348085226,1736298653946,-4533.37678263,0.00011193,2]
[348085227,1736298653957,-637.42638404,0.00011193,2]
[348085228,1736298653967,-9888.66384724,0.00011193,2]
[348085229,1736298653976,-7833.34557713,0.00011193,2]
[348085230,1736298653986,-4533.37678263,0.00011193,2]
[348085231,1736298653995,-3208.38748302,0.00011194,2]
[348085232,1736298654006,-2907.71131836,0.00011194,2]
[348085233,1736298654015,-9888.66384724,0.00011194,2]
[348085234,1736298654025,-750.12863876,0.00011194,2]
[348085235,1736298654034,-4533.37678263,0.00011194,2]
[348085236,1736298654043,-6020.60979987,0.00011194,2]
[348085237,1736298654053,-652.45904148,0.00011194,2]
[348085238,1736298654062,-3594.54130271,0.00011194,2]
[348085239,1736298654072,-3594.54130271,0.00011194,2]
[348085240,1736298654082,-200.0,0.00011195,2]
[348085241,1736298654093,-3192.04436476,0.00011195,2]
[348085242,1736298654104,-1329.32215215,0.00011195,2]
[348085243,1736298654113,-200.0,0.00011195,2]
[348085244,1736298654122,-750.12863876,0.00011195,2]
[348085245,1736298654131,-57240.78343033,0.00011196,2]
[348085246,1736298654150,-518.90912967,0.00011196,2]
[348085247,1736298654161,-302.0,0.00011196,2]
[348085248,1736298654176,-1341.95419364,0.00011196,2]
[348085249,1736298654187,-4854.45,0.00011196,2]
[348085251,1736298922474,1413.08,8.219e-05,2]
[348085253,1736299365503,150.0,8.049e-05,2]
[348085254,1736299425604,150.0,8.382e-05,2]
[348085256,1736299536597,11901.0,8.561e-05,30]
[348085291,1736299545521,150.0,8.369e-05,2]
[348085295,1736299545593,150.0,8.475e-05,2]
[348085496,1736299605360,150.0,8.129e-05,2]
[348085497,1736299605601,150.0,8.129e-05,2]
[348085498,1736299605657,150.0,8.055e-05,2]
[348085499,1736299605888,150.0,8.405e-05,2]
[348085500,1736299605950,150.0,7.704e-05,2]
[348085501,1736299606028,150.0,8.322e-05,2]
[348085773,1736299665318,150.0,8.5e-05,2]
[348085774,1736299665780,150.0,7.482e-05,2]
[348085782,1736299746079,250.0,8.276e-05,2]
[348085783,1736299768978,250.0,8.416e-05,2]
[348085784,1736299805096,1342.42,8.219e-05,2]
[348085792,1736299831760,-165.45,8.5e-05,2]
[348085793,1736299831770,-1932.69,8.5e-05,2]
[348085794,1736299831780,-13.79158524,8.526e-05,2]
[348085795,1736299831791,-153.18841476,8.526e-05,2]
[348085796,1736299831801,-253.16910791,8.526e-05,2]
[348085797,1736299831811,-151.82,8.561e-05,2]
[348085798,1736299831820,-150.0,8.615e-05,2]
[348085799,1736299831830,-150.0,8.739e-05,2]
[348085800,1736299831839,-1000.0,8.773e-05,2]
[348085801,1736299831849,-150.0,8.865e-05,2]
[348085802,1736299831858,-150.0,8.933e-05,2]
[348085803,1736299831867,-150.0,9.046e-05,2]
[348085804,1736299831876,-150.0,9.245e-05,2]
[348085805,1736299831885,-150.0,9.256e-05,2]
[348085806,1736299831895,-1481.83897394,9.259e-05,2]
[348085807,1736299831906,-920.76715178,9.259e-05,2]
[348085808,1736299831924,-1746.66141464,9.259e-05,2]
[348085809,1736299831936,-269.24235348,9.259e-05,2]
[348085810,1736299831948,-581.68050782,9.259e-05,2]
[348085811,1736299831959,-311.97029576,9.259e-05,2]
[348085812,1736299831970,-1784.58000001,9.259e-05,2]
[348085813,1736299831982,-1216.98884698,9.259e-05,2]
[348085814,1736299832086,-353.44045559,9.259e-05,2]
[348085815,1736299832096,-8667.17,9.261e-05,2]
[348085816,1736299832106,-150.0,9.262e-05,2]
[348085817,1736299832324,-150.0,9.263e-05,2]
[348085818,1736299832337,-8667.17,9.264e-05,2]
[348085819,1736299832347,-150.99,9.264e-05,2]
[348085820,1736299832356,-16045.73,9.264e-05,2]
[348085821,1736299832366,-8667.17,9.266e-05,2]
[348085822,1736299832376,-514.32,9.268e-05,2]
[348085823,1736299832387,-299.99,9.268e-05,2]
[348085824,1736299832396,-7854.55619441,9.268e-05,2]
[348085826,1736299832408,-812.61380559,9.268e-05,2]
[348085828,1736299832418,-3633.78620637,9.271e-05,2]
[348085831,1736299832430,-2100.0,9.271e-05,2]
[348085833,1736299832442,-2933.38379363,9.271e-05,2]
[348085835,1736299832452,-8667.17,9.273e-05,2]
[348085837,1736299832464,-838.83559922,9.274e-05,2]
[348085838,1736299832474,-246.24,9.275e-05,2]
[348085840,1736299832483,-8667.17,9.276e-05,2]
[348085842,1736299832493,-8667.17,9.278e-05,2]
[348085843,1736299832503,-8667.17,9.281e-05,2]
[348085844,1736299832519,-8667.17,9.283e-05,2]
[348085845,1736299832528,-8667.17,9.286e-05,2]
[348085846,1736299832538,-8667.17,9.288e-05,2]
[348085847,1736299832548,-8667.17,9.29e-05,2]
[348085848,1736299832558,-8667.17,9.293e-05,2]
[348085849,1736299832567,-8667.17,9.295e-05,2]
[348085850,1736299832576,-8667.17,9.298e-05,2]
[348085851,1736299832585,-8667.17,9.3e-05,2]
[348085852,1736299832595,-8667.17,9.303e-05,2]
[348085853,1736299832604,-8667.17,9.305e-05,2]
[348085854,1736299832614,-339.47,9.453e-05,2]
[348085855,1736299832623,-188.65,9.49e-05,2]
[348085856,1736299832633,-1183.47810442,9.5e-05,2]
[348085857,1736299832643,-150.0,9.553e-05,2]
[348085858,1736299832653,-150.0,9.59e-05,2]
[348085859,1736299832662,-150.0,9.653e-05,2]
[348085860,1736299832672,-4420.0,9.703e-05,2]
[348085861,1736299832681,-150.0,9.734e-05,2]
[348085862,1736299832690,-150.0,9.739e-05,2]
[348085863,1736299832699,-150.0,9.753e-05,2]
[348085864,1736299832708,-150.0,9.833e-05,2]
[348085865,1736299832718,-150.0,9.856e-05,2]
[348085866,1736299832728,-1000.0,9.87e-05,2]
[348085867,1736299832737,-150.0,9.877e-05,2]
[348085868,1736299832747,-150.0,9.899e-05,2]
[348085869,1736299832758,-4270.68131659,9.9e-05,2]
[348085870,1736299832767,-575.1,9.971e-05,2]
[348085871,1736299832776,-542.74,9.971e-05,2]
[348085872,1736299832786,-500.0,9.971e-05,2]
[348085873,1736299832795,-1127.75,9.971e-05,2]
[348085874,1736299832805,-642.05,9.971e-05,2]
[348085875,1736299832814,-1849.9,9.971e-05,2]
[348085876,1736299832823,-1241.1,9.971e-05,2]
[348085877,1736299832833,-500.0,9.971e-05,2]
[348085878,1736299832842,-668.19,9.971e-05,2]
[348085879,1736299832851,-876.7,9.971e-05,2]
[348085880,1736299832861,-500.0,9.971e-05,2]
[348085881,1736299832871,-500.0,9.971e-05,2]
[348085882,1736299832880,-541.71,9.971e-05,2]
[348085883,1736299832890,-558.19,9.971e-05,2]
[348085884,1736299832899,-1070.67,9.971e-05,2]
[348085885,1736299832910,-500.0,9.971e-05,2]
[348085886,1736299832920,-1415.79,9.971e-05,2]
[348085887,1736299832929,-614.21,9.971e-05,2]
[348085888,1736299832939,-1859.89,9.972e-05,2]
[348085889,1736299832948,-1859.89,9.972e-05,2]
[348085890,1736299832958,-500.0,9.972e-05,2]
[348085891,1736299832967,-500.0,9.972e-05,2]
[348085892,1736299832976,-500.0,9.972e-05,2]
[348085893,1736299832985,-1039.44,9.972e-05,2]
[348085894,1736299832994,-500.0,9.972e-05,2]
[348085895,1736299833004,-500.0,9.972e-05,2]
[348085896,1736299833017,-500.0,9.972e-05,2]
[348085897,1736299833028,-500.0,9.972e-05,2]
[348085898,1736299833038,-666.06,9.972e-05,2]
[348085899,1736299833048,-1000.0,9.972e-05,2]
[348085900,1736299833058,-500.0,9.972e-05,2]
[348085901,1736299833068,-500.0,9.972e-05,2]
[348085902,1736299833078,-976.7,9.972e-05,2]
[348085903,1736299833089,-793.7,9.972e-05,2]
[348085904,1736299833103,-500.0,9.973e-05,2]
[348085905,1736299833113,-656.27618219,9.991e-05,2]
[348085906,1736299833123,-9139.90861444,9.992e-05,2]
[348085907,1736299833133,-394.48840293,9.995e-05,2]
[348085908,1736299833143,-239.2901,9.995e-05,2]
[348085909,1736299833152,-505.70413353,9.998e-05,2]
[348085910,1736299833162,-504.56022418,9.998e-05,2]
[348085911,1736299833171,-507.13786463,9.998e-05,2]
[348085912,1736299833182,-500.0,9.998e-05,2]
[348085913,1736299833192,-500.0,9.998e-05,2]
[348085914,1736299833202,-504.41458253,9.998e-05,2]
[348085915,1736299833212,-372.25662341,9.998e-05,2]
[348085916,1736299833222,-500.0,9.999e-05,2]
[348085917,1736299833231,-500.0,9.999e-05,2]
[348085918,1736299833242,-500.0,9.999e-05,2]
[348085919,1736299833252,-500.0,9.999e-05,2]
[348085920,1736299833265,-811.55,9.999e-05,2]
[348085921,1736299833275,-542.87,9.999e-05,2]
[348085922,1736299833286,-1278.95,9.999e-05,2]
[348085923,1736299833296,-849.79,9.999e-05,2]
[348085924,1736299833306,-500.0,9.999e-05,2]
[348085925,1736299833316,-415.4538744,9.999e-05,2]
[348085926,1736299833326,-1033.42,9.999e-05,2]
[348085927,1736299833336,-510.63,9.999e-05,2]
[348085928,1736299833346,-500.0,9.999e-05,2]
[348085929,1736299833355,-500.0,9.999e-05,2]
[348085930,1736299833364,-500.0,9.999e-05,2]
[348085931,1736299833373,-500.0,9.999e-05,2]
[348085932,1736299833383,-687.63,9.999e-05,2]
[348085933,1736299833392,-500.0,9.999e-05,2]
[348085934,1736299833401,-594.23,9.999e-05,2]
[348085935,1736299833411,-500.0,9.999e-05,2]
[348085936,1736299833421,-1171.3,9.999e-05,2]
[348085937,1736299833430,-549.42,9.999e-05,2]
[348085938,1736299833440,-792.44,9.999e-05,2]
[348085939,1736299833450,-167.85445265,9.999e-05,2]
[348085940,1736299833462,-500.0,9.999e-05,2]
[348085941,1736299833477,-254.63635664,9.999e-05,2]
[348085942,1736299833488,-500.0,9.999e-05,2]
[348085943,1736299833498,-194.64020175,9.999e-05,2]
[348085944,1736299833511,-500.0,9.999e-05,2]
[348085945,1736299833522,-225.85,0.0001,2]
[348085946,1736299833532,-1199937.92156125,0.0001,2]
[348085949,1736299833613,-498.92723845,9.998e-05,2]
[348085951,1736299833625,-7.43132133,9.998e-05,2]
[348085953,1736299833635,-277478.5672191,0.0001,2]
[348085955,1736299833647,-112318.62050231,0.0001,2]
[348085957,1736299833658,-208187.11282612,0.0001,2]
[348085960,1736299833672,-379.99999,0.0001,2]
[348085970,1736299837627,-500.0,9.998e-05,2]
[348085971,1736299837637,-4323.27885289,0.0001,2]
[348085972,1736299837649,-510.70635281,0.0001,2]
[348085973,1736299837672,-562.00676926,0.0001,2]
[348085974,1736299837687,-719.93980708,0.0001,2]
[348085975,1736299837774,-428.28720183,0.0001,2]
[348085976,1736299837787,-14607.45548186,0.0001,2]
[348085977,1736299837799,-4941.09052972,0.0001,2]
[348085978,1736299837811,-31199.9999992,0.0001,2]
[348085979,1736299837822,-23000.0,0.0001,2]
[348085980,1736299837833,-9445.1,0.0001,2]
[348085981,1736299837846,-37630.17489133,0.0001,2]
[348085982,1736299837920,-32605.35076648,0.0001,2]
[348085983,1736299837931,-466.62588,0.0001,2]
[348085984,1736299837943,-23039.22021473,0.0001,2]
[348085985,1736299837955,-1300.0,0.0001,2]
[348085986,1736299838067,-134642.64231832,0.0001,2]
[348086013,1736299839776,-505.00193703,9.998e-05,2]
[348086014,1736299839786,-504.4422406,9.998e-05,2]
[348086015,1736299839796,-569.47,9.999e-05,2]
[348086016,1736299839806,-2876.82,9.999e-05,2]
[348086017,1736299839815,-527.18437525,0.0001,2]
[348086018,1736299839826,-529.1999988,0.0001,2]
[348086019,1736299839838,-349.69019323,0.0001,2]
[348086020,1736299839924,-426.82525213,0.0001,2]
[348086021,1736299839936,-261.26,0.0001,2]
[348086023,1736299840167,-27874.2801531,0.0001,2]
[348086024,1736299840197,-62023.59609106,0.0001,2]
[348086025,1736299840209,-2170.14205106,0.0001,2]
[348086026,1736299840221,-342.41312756,0.0001,2]
[348086028,1736299840233,-509.40486528,0.0001,2]
[348086030,1736299840244,-2448.40278486,0.0001,2]
[348086033,1736299840255,-9085.46180306,0.0001,2]
[348086035,1736299840267,-16012.5,0.0001,2]
[348086037,1736299840278,-64130.49939731,0.0001,2]
[348086039,1736299840288,-331.49456964,0.0001,2]
[348086041,1736299840297,-4239.10284717,0.0001,2]
[348086042,1736299840307,-69195.0937149,0.0001,2]
[348086056,1736299842799,-500.0,9.991e-05,2]
[348086057,1736299842808,-500.0,9.998e-05,2]
[348086058,1736299842818,-2165.53123548,0.0001,2]
[348086059,1736299842829,-334.7292742,0.0001,2]
[348086060,1736299842840,-743.5529996,0.0001,2]
[348086061,1736299842852,-525.492,0.0001,2]
[348086062,1736299842863,-594537.26313103,0.0001,2]
[348086063,1736299842952,-1347.83832497,0.0001,2]
[348086064,1736299842965,-3042.216401,0.0001,2]
[348086065,1736299842976,-495.2572,0.0001,2]
[348086066,1736299842987,-604.0,0.0001,2]
[348086068,1736299843111,-84009.89723876,0.0001,2]
[348086075,1736299845662,-500.0,9.991e-05,2]
[348086077,1736299845671,-933.55,9.999e-05,2]
[348086078,1736299845681,-444.28657311,0.0001,2]
[348086080,1736299845811,-432.82035298,0.0001,2]
[348086081,1736299845823,-10138.0290653,0.0001,2]
[348086082,1736299845834,-1680.0,0.0001,2]
[348086083,1736299845960,-5106.55160518,0.0001,2]
[348086084,1736299845973,-29516.81888699,0.0001,2]
[348086085,1736299845984,-37543.6328268,0.0001,2]
[348086086,1736299845995,-22989.52816297,0.0001,2]
[348086087,1736299846007,-7163.59288313,0.0001,2]
[348086088,1736299846019,-3367.09382291,0.0001,2]
[348086089,1736299846097,-727.04806406,0.0001,2]
[348086091,1736299846108,-482.5,0.0001,2]
[348086094,1736300751716,1402.65,8.219e-05,2]
[348086512,1736300865492,150.0,7.988e-05,2]
[348086513,1736300925614,150.0,8.328e-05,2]
[348086514,1736300925655,150.0,7.632e-05,2]
[348086515,1736300925758,150.0,7.948e-05,2]
[348086516,1736300925794,150.0,7.632e-05,2]
[348086517,1736300937936,152.0,0.00012259,29]
[348086518,1736300938600,152.0,0.00012105,27]
[348086519,1736300938926,152.0,0.00012028,26]
[348086520,1736300939305,152.0,0.00011951,25]
[348086521,1736300939629,152.0,0.00011874,24]
[348086522,1736300943358,5000.0,0.0002301,120]
[348086523,1736300985385,150.0,8.122e-05,2]
[348086524,1736301003139,2697.35,8.3e-05,2]
[348086531,1736301032093,-454.81497116,8.3e-05,2]
[348086532,1736301032103,-250.0,8.693e-05,2]
[348086533,1736301032112,-154.73679912,8.696e-05,2]
[348086534,1736301032123,-162.51320088,8.696e-05,2]
[348086535,1736301032133,-137.48679912,8.716e-05,2]
[348086536,1736301032144,-862.51320088,8.716e-05,2]
[348086537,1736301032153,-1486.46,8.719e-05,2]
[348086538,1736301032162,-165.32,8.783e-05,2]
[348086539,1736301032172,-150.0,9.076e-05,2]
[348086540,1736301032182,-364.84,9.12e-05,2]
[348086541,1736301032191,-340.06,9.132e-05,2]
[348086542,1736301032200,-150.0,9.187e-05,2]
[348086543,1736301032209,-3577.1906,9.193e-05,2]
[348086544,1736301032219,-150.0,9.205e-05,2]
[348086545,1736301032228,-500.0,9.263e-05,2]
[348086546,1736301032237,-150.0,9.328e-05,2]
[348086547,1736301032247,-150.0,9.343e-05,2]
[348086548,1736301032256,-299.99,9.343e-05,2]
[348086549,1736301032268,-6207.16,9.343e-05,2]
[348086550,1736301032278,-150.0,9.361e-05,2]
[348086551,1736301032287,-500.0,9.397e-05,2]
[348086552,1736301032296,-150.0,9.43e-05,2]
[348086553,1736301032305,-150.0,9.44e-05,2]
[348086554,1736301032314,-150.0,9.475e-05,2]
[348086555,1736301032323,-150.0,9.498e-05,2]
[348086556,1736301032332,-150.0,9.506e-05,2]
[348086557,1736301032342,-979.45,9.507e-05,2]
[348086558,1736301032351,-673.63544145,9.507e-05,2]
[348086559,1736301032363,-200.24455855,9.507e-05,2]
[348086560,1736301032372,-300.0,9.507e-05,2]
[348086561,1736301032381,-300.0,9.507e-05,2]
[348086562,1736301032390,-150.0,9.507e-05,2]
[348086563,1736301032399,-1806.26,9.507e-05,2]
[348086564,1736301032408,-150.0,9.507e-05,2]
[348086565,1736301032417,-300.0,9.507e-05,2]
[348086566,1736301032426,-990.64,9.507e-05,2]
[348086567,1736301032435,-150.8,9.507e-05,2]
[348086568,1736301032446,-150.97,9.507e-05,2]
[348086569,1736301032455,-979.45,9.507e-05,2]
[348086570,1736301032464,-974.08,9.507e-05,2]
[348086571,1736301032474,-167.55,9.507e-05,2]
[348086572,1736301032484,-150.0,9.632e-05,2]
[348086573,1736301032493,-150.0,9.637e-05,2]
[348086574,1736301032505,-150.0,9.639e-05,2]
[348086575,1736301032515,-150.0,9.642e-05,2]
[348086576,1736301032525,-875.08,9.65e-05,2]
[348086577,1736301032535,-150.0,9.682e-05,2]
[348086578,1736301032544,-150.0,9.695e-05,2]
[348086579,1736301032553,-150.0,9.737e-05,2]
[348086580,1736301032563,-150.0,9.768e-05,2]
[348086581,1736301032572,-150.0,9.788e-05,2]
[348086582,1736301032581,-1000.0,9.805e-05,2]
[348086583,1736301032590,-150.0,9.81e-05,2]
[348086584,1736301032599,-464.55,9.836e-05,2]
[348086585,1736301032608,-206.4544204,9.836e-05,2]
[348086586,1736301032620,-115.1055796,9.836e-05,2]
[348086587,1736301032629,-300.0,9.836e-05,2]
[348086588,1736301032638,-388.06,9.836e-05,2]
[348086589,1736301032866,-387.24,9.836e-05,2]
[348086590,1736301032876,-873.48,9.836e-05,2]
[348086591,1736301032889,-150.0,9.852e-05,2]
[348086592,1736301032900,-150.0,9.864e-05,2]
[348086593,1736301032910,-150.0,9.871e-05,2]
[348086594,1736301032920,-150.0,9.877e-05,2]
[348086595,1736301032931,-2903.3713,9.898e-05,2]
[348086596,1736301032940,-7371.7106,9.898e-05,2]
[348086597,1736301032949,-373.4487,9.898e-05,2]
[348086598,1736301032958,-37108.3253,9.898e-05,2]
[348086599,1736301032968,-1000.0,9.898e-05,2]
[348086600,1736301032976,-229.7933,9.898e-05,2]
[348086601,1736301032986,-162.1549,9.899e-05,2]
[348086602,1736301032995,-1500.0,9.899e-05,2]
[348086603,1736301033005,-262.0843,9.899e-05,2]
[348086604,1736301033015,-1169.714,9.899e-05,2]
[348086605,1736301033024,-9689.2031,9.9e-05,2]
[348086606,1736301033033,-1040.2151,9.9e-05,2]
[348086607,1736301033042,-1000.0,9.9e-05,2]
[348086608,1736301033052,-1649.5928,9.9e-05,2]
[348086609,1736301033060,-1000.0,9.9e-05,3]
[348086610,1736301033070,-150.0,9.924e-05,2]
[348086611,1736301033079,-500.0,9.971e-05,2]
[348086612,1736301033088,-500.0,9.971e-05,2]
[348086613,1736301033097,-500.0,9.971e-05,2]
[348086614,1736301033105,-500.0,9.971e-05,2]
[348086615,1736301033114,-500.0,9.971e-05,2]
[348086616,1736301033123,-500.0,9.971e-05,2]
[348086617,1736301033133,-500.0,9.971e-05,2]
[348086618,1736301033142,-156.9909153,9.971e-05,2]
[348086619,1736301033153,-521.1390847,9.971e-05,2]
[348086620,1736301033163,-650.2,9.971e-05,2]
[348086621,1736301033173,-1226.56,9.971e-05,2]
[348086622,1736301033182,-2952.39,9.971e-05,2]
[348086623,1736301033192,-500.0,9.971e-05,2]
[348086624,1736301033201,-500.0,9.971e-05,2]
[348086625,1736301033210,-500.0,9.971e-05,2]
[348086626,1736301033220,-1562.34,9.971e-05,2]
[348086627,1736301033230,-500.0,9.971e-05,2]
[348086628,1736301033239,-500.0,9.971e-05,2]
[348086629,1736301033250,-639.5,9.971e-05,2]
[348086630,1736301033260,-530.03,9.971e-05,2]
[348086631,1736301033269,-906.92,9.971e-05,2]
[348086632,1736301033279,-1000.0,9.971e-05,2]
[348086633,1736301033289,-580.7,9.971e-05,2]
[348086634,1736301033298,-500.0,9.971e-05,2]
[348086635,1736301033307,-1345.72,9.971e-05,2]
[348086636,1736301033317,-1198.70141503,9.978e-05,2]
[348086637,1736301033326,-500.0,9.991e-05,2]
[348086638,1736301033336,-500.0,9.991e-05,2]
[348086639,1736301033345,-505.83050638,9.991e-05,2]
[348086640,1736301033355,-504.66225297,9.991e-05,2]
[348086641,1736301033364,-507.36841952,9.991e-05,2]
[348086642,1736301033374,-500.0,9.991e-05,2]
[348086643,1736301033384,-500.0,9.991e-05,2]
[348086644,1736301033394,-503.41766657,9.991e-05,2]
[348086645,1736301033404,-500.0,9.991e-05,2]
[348086646,1736301033414,-500.0,9.991e-05,2]
[348086647,1736301033424,-502.36394147,9.991e-05,2]
[348086648,1736301033435,-529.83880091,9.991e-05,2]
[348086649,1736301033445,-500.0,9.991e-05,2]
[348086650,1736301033455,-500.0,9.991e-05,2]
[348086651,1736301033465,-502.40944064,9.991e-05,2]
[348086652,1736301033475,-500.0,9.991e-05,2]
[348086653,1736301033485,-500.0,9.991e-05,2]
[348086654,1736301033495,-500.0,9.991e-05,2]
[348086655,1736301033507,-500.0,9.991e-05,2]
[348086656,1736301033517,-500.0,9.991e-05,2]
[348086657,1736301033526,-500.0,9.991e-05,2]
[348086658,1736301033536,-500.0,9.991e-05,2]
[348086659,1736301033546,-500.0,9.991e-05,2]
[348086660,1736301033557,-500.0,9.991e-05,2]
[348086661,1736301033567,-649.21,9.991e-05,2]
[348086662,1736301033576,-503.55019058,9.991e-05,2]
[348086663,1736301033586,-526.65704937,9.991e-05,2]
[348086664,1736301033596,-500.0,9.991e-05,2]
[348086665,1736301033606,-500.0,9.991e-05,2]
[348086666,1736301033615,-500.0,9.991e-05,2]
[348086667,1736301033625,-500.0,9.991e-05,2]
[348086668,1736301033634,-500.0,9.991e-05,2]
[348086669,1736301033644,-500.0,9.991e-05,2]
[348086670,1736301033653,-500.0,9.991e-05,2]
[348086671,1736301033663,-500.0,9.991e-05,2]
[348086672,1736301033673,-500.0,9.991e-05,2]
[348086673,1736301033683,-500.0,9.991e-05,2]
[348086674,1736301033692,-505.27900817,9.991e-05,2]
[348086675,1736301033702,-500.0,9.991e-05,2]
[348086676,1736301033711,-500.0,9.991e-05,2]
[348086677,1736301033720,-549.42027639,9.991e-05,2]
[348086678,1736301033730,-531.58,9.991e-05,2]
[348086679,1736301033739,-500.0,9.991e-05,2]
[348086680,1736301033749,-341.4519385,9.991e-05,2]
[348086681,1736301033762,-158.5480615,9.991e-05,2]
[348086682,1736301033772,-500.0,9.991e-05,2]
[348086683,1736301033782,-500.0,9.991e-05,2]
[348086684,1736301033792,-500.0,9.991e-05,2]
[348086685,1736301033801,-503.63696084,9.991e-05,2]
[348086686,1736301033811,-503.08948057,9.991e-05,2]
[348086687,1736301033820,-500.0,9.991e-05,2]
[348086688,1736301033830,-505.03558174,9.991e-05,2]
[348086689,1736301033842,-500.0,9.991e-05,2]
[348086690,1736301033851,-500.0,9.991e-05,2]
[348086691,1736301033861,-500.0,9.991e-05,2]
[348086692,1736301033870,-500.0,9.991e-05,2]
[348086693,1736301033882,-500.0,9.991e-05,2]
[348086694,1736301033892,-500.0,9.991e-05,2]
[348086695,1736301033902,-500.0,9.991e-05,2]
[348086696,1736301033911,-500.0,9.991e-05,2]
[348086697,1736301033920,-500.0,9.991e-05,2]
[348086698,1736301033929,-500.0,9.991e-05,2]
[348086699,1736301033939,-500.0,9.991e-05,2]
[348086700,1736301033948,-500.0,9.991e-05,2]
[348086701,1736301033959,-500.0,9.991e-05,2]
[348086702,1736301033969,-500.0,9.991e-05,2]
[348086703,1736301033978,-514.28181499,9.991e-05,2]
[348086704,1736301033987,-500.0,9.991e-05,2]
[348086705,1736301033997,-500.0,9.991e-05,2]
[348086706,1736301034007,-500.0,9.991e-05,2]
[348086707,1736301034017,-500.0,9.991e-05,2]